fUSD/lending_fUSD_20250606
["ID","MTS","AMOUNT","RATE_DAILY","PERIOD"]
[364678568,1749197453650,-151.0,0.00030164,7]
[364678569,1749197453662,-480.0,0.00030164,7]
[364678570,1749197453672,-480.0,0.00030164,7]
[364678571,1749197453682,-481.29722211,0.00030164,7]
[364678572,1749197453694,-151.0,0.00030164,7]
[364678573,1749197453705,-480.0,0.00030164,7]
[364678574,1749197453715,-1931.15,0.00030164,7]
[364678575,1749197453728,-480.0,0.00030164,7]
[364678576,1749197453739,-480.0,0.00030164,7]
[364678577,1749197453750,-480.0,0.00030164,7]
[364678578,1749197453760,-480.0,0.00030164,7]
[364678579,1749197453771,-480.0,0.00030164,7]
[364678580,1749197453782,-574.808789,0.00030164,7]
[364678581,1749197453793,-488.83298494,0.00030164,7]
[364678582,1749197453803,-485.51000896,0.00030164,7]
[364678583,1749197453814,-151.0,0.00030164,7]
[364678584,1749197453824,-151.0,0.00030164,7]
[364678585,1749197453834,-1682.34,0.00030164,7]
[364678586,1749197453844,-1187.82,0.00030164,7]
[364678587,1749197453854,-426.71356169,0.00030164,7]
[364678588,1749197453864,-480.0,0.00030164,7]
[364678589,1749197453874,-2424.75,0.00030164,7]
[364678590,1749197453884,-1758.02,0.00030164,7]
[364678591,1749197453893,-665.52,0.00030164,7]
[364678592,1749197453903,-11346.31,0.00030164,7]
[364678593,1749197453914,-480.0,0.00030164,7]
[364678594,1749197453924,-2151.68,0.00030164,7]
[364678595,1749197453934,-151.0,0.00030164,7]
[364678596,1749197453946,-151.0,0.00030164,7]
[364678597,1749197453957,-569.07233809,0.00030164,7]
[364678598,1749197453967,-914.37,0.00030164,7]
[364678599,1749197453977,-151.0,0.00030164,7]
[364678600,1749197453987,-251.445257,0.00030164,7]
[364678601,1749197453997,-151.0,0.00030164,7]
[364678602,1749197454008,-480.0,0.00030164,7]
[364678603,1749197454019,-480.0,0.00030164,7]
[364678604,1749197454029,-480.0,0.00030164,7]
[364678605,1749197454040,-5483.59,0.00030164,7]
[364678606,1749197454050,-480.0,0.00030164,7]
[364678607,1749197454060,-1421.96,0.00030164,7]
[364678608,1749197454070,-4390.51,0.00030164,7]
[364678609,1749197454081,-484.97037992,0.00030164,7]
[364678610,1749197454091,-1257.03,0.00030164,7]
[364678611,1749197454101,-614.49,0.00030164,7]
[364678612,1749197454112,-481.12069552,0.00030164,7]
[364678613,1749197454122,-480.0,0.00030164,7]
[364678614,1749197454132,-481.3859118,0.00030164,7]
[364678615,1749197454142,-486.87505889,0.00030164,7]
[364678616,1749197454153,-480.0,0.00030164,7]
[364678617,1749197454163,-480.0,0.00030164,7]
[364678618,1749197454173,-480.0,0.00030164,7]
[364678619,1749197454183,-480.0,0.00030164,7]
[364678620,1749197454195,-480.0,0.00030164,7]
[364678621,1749197454205,-1145.33,0.00030164,7]
[364678622,1749197454215,-1145.33,0.00030164,7]
[364678623,1749197454226,-1145.33,0.00030164,7]
[364678624,1749197454236,-798.01,0.00030164,30]
[364678625,1749197454246,-1145.33,0.00030164,7]
[364678626,1749197454256,-1145.33,0.00030164,7]
[364678627,1749197454266,-480.0,0.00030164,7]
[364678628,1749197454277,-1145.33,0.00030164,7]
[364678629,1749197454288,-1950.14,0.00030164,7]
[364678630,1749197454299,-1145.33,0.00030164,7]
[364678631,1749197454309,-2006.46,0.00030164,7]
[364678632,1749197454320,-480.0,0.00030164,7]
[364678633,1749197454330,-1145.33,0.00030164,7]
[364678634,1749197454340,-483.41504602,0.00030164,7]
[364678635,1749197454351,-1145.33,0.00030164,7]
[364678636,1749197454362,-1145.33,0.00030164,7]
[364678637,1749197454372,-1000.0,0.00030164,7]
[364678638,1749197454382,-1145.33,0.00030164,7]
[364678639,1749197454392,-1145.33,0.00030164,7]
[364678640,1749197454402,-1145.33,0.00030164,7]
[364678641,1749197454412,-1145.33,0.00030164,7]
[364678642,1749197454422,-1145.33,0.00030164,7]
[364678643,1749197454432,-480.0,0.00030164,7]
[364678644,1749197454443,-1145.33,0.00030164,7]
[364678645,1749197454452,-1145.33,0.00030164,7]
[364678646,1749197454463,-1145.33,0.00030164,7]
[364678647,1749197454473,-318.6672608,0.00030164,7]
[364678648,1749197454482,-1145.33,0.00030164,7]
[364678649,1749197454492,-399.591324,0.00030164,7]
[364678650,1749197454502,-480.0,0.00030164,7]
[364678651,1749197454512,-1095.79,0.00030164,2]
[364678652,1749197454521,-1095.79,0.00030164,2]
[364678653,1749197454531,-1739.03,0.00030164,7]
[364678654,1749197454542,-1095.79,0.00030164,2]
[364678655,1749197454552,-1095.79,0.00030164,2]
[364678656,1749197454562,-662.65,0.00030164,7]
[364678657,1749197454572,-1095.79,0.00030164,2]
[364678658,1749197454581,-1412.62,0.00030164,7]
[364678659,1749197454591,-1095.79,0.00030164,2]
[364678660,1749197454601,-1095.79,0.00030164,2]
[364678661,1749197454611,-1095.79,0.00030164,2]
[364678662,1749197454620,-1095.79,0.00030164,2]
[364678663,1749197454630,-1095.79,0.00030164,2]
[364678664,1749197454640,-1095.79,0.00030164,2]
[364678665,1749197454650,-665.09,0.00030164,7]
[364678666,1749197454664,-1095.79,0.00030164,2]
[364678667,1749197454673,-480.0,0.00030164,7]
[364678668,1749197454684,-1095.79,0.00030164,2]
[364678669,1749197454695,-1095.79,0.00030164,2]
[364678670,1749197454706,-1095.79,0.00030164,2]
[364678671,1749197454717,-210.943889,0.00030164,7]
[364678672,1749197454727,-480.0,0.00030164,7]
[364678673,1749197454738,-1527.49,0.00030164,7]
[364678674,1749197454749,-1479.06,0.00030164,7]
[364678675,1749197454759,-2218.6,0.00030164,7]
[364678676,1749197454769,-480.0,0.00030164,7]
[364678677,1749197454779,-503.88846495,0.00030164,7]
[364678678,1749197454789,-1061.57,0.00030164,7]
[364678679,1749197454799,-480.0,0.00030164,7]
[364678680,1749197454809,-151.0,0.00030164,7]
[364678681,1749197454818,-1908.77,0.00030164,7]
[364678682,1749197454828,-2387.99,0.00030164,7]
[364678683,1749197454838,-151.0,0.00030164,7]
[364678684,1749197454848,-484.5866159,0.00030164,7]
[364678685,1749197454858,-480.0,0.00030164,7]
[364678686,1749197454868,-484.28248514,0.00030164,7]
[364678687,1749197454878,-480.0,0.00030164,7]
[364678688,1749197454888,-533.36196854,0.00030164,7]
[364678689,1749197454897,-453.537922,0.00030164,7]
[364678690,1749197454907,-453.537922,0.00030164,7]
[364678691,1749197454917,-480.0,0.00030164,7]
[364678692,1749197454927,-480.0,0.00030164,7]
[364678693,1749197454938,-326.78020907,0.00030164,7]
[364678694,1749197454948,-480.0,0.00030164,7]
[364678695,1749197454958,-2685.06,0.00030164,7]
[364678696,1749197454968,-1102.24,0.00030164,7]
[364678697,1749197454979,-1166.4,0.00030164,7]
[364678698,1749197454990,-557.21,0.00030164,7]
[364678699,1749197455000,-480.0,0.00030164,7]
[364678700,1749197455011,-420.82368815,0.00030164,2]
[364678701,1749197455021,-453.537922,0.00030164,7]
[364678702,1749197455031,-1597.01,0.00030164,7]
[364678703,1749197455041,-453.537922,0.00030164,7]
[364678704,1749197455052,-577.15,0.00030164,7]
[364678705,1749197455314,-151.0,0.00030164,7]
[364678706,1749197455324,-480.0,0.00030164,7]
[364678707,1749197455334,-480.0,0.00030164,7]
[364678708,1749197455344,-585.0452618,0.00030164,7]
[364678709,1749197455354,-151.0,0.00030164,7]
[364678710,1749197455364,-480.0,0.00030164,7]
[364678711,1749197455374,-298.394027,0.00030164,7]
[364678712,1749197455384,-480.0,0.00030164,7]
[364678713,1749197455393,-151.0,0.00030164,7]
[364678714,1749197455403,-151.0,0.00030164,7]
[364678715,1749197455413,-500.0,0.00030164,7]
[364678716,1749197455423,-500.0,0.00030164,7]
[364678717,1749197455432,-500.0,0.00030164,7]
[364678718,1749197455444,-500.0,0.00030164,7]
[364678719,1749197455454,-2026.78,0.00030164,7]
[364678720,1749197455464,-240.04029512,0.00030164,7]
[364678721,1749197455474,-187.226475,0.00030164,7]
[364678722,1749197455484,-1382.41,0.00030164,7]
[364678723,1749197455494,-17017.79,0.00030164,7]
[364678724,1749197455504,-480.0,0.00030164,7]
[364678725,1749197455514,-486.49874473,0.00030164,7]
[364678726,1749197455524,-819.62,0.00030164,7]
[364678727,1749197455535,-151.0,0.00030164,7]
[364678728,1749197455545,-2463.45,0.00030164,7]
[364678729,1749197455555,-2048.22,0.00030164,7]
[364678730,1749197455565,-649.09,0.00030164,7]
[364678731,1749197455575,-151.0,0.00030164,7]
[364678732,1749197455586,-480.0,0.00030164,7]
[364678733,1749197455596,-480.0,0.00030164,7]
[364678734,1749197455605,-5024.74,0.00030164,7]
[364678735,1749197455616,-3269.76,0.00030164,7]
[364678736,1749197455626,-480.0,0.00030164,7]
[364678737,1749197455636,-482.74502455,0.00030164,7]
[364678738,1749197455646,-2056.04,0.00030164,7]
[364678739,1749197455659,-480.0,0.00030164,7]
[364678740,1749197455669,-425.02423976,0.00030164,7]
[364678741,1749197455679,-480.0,0.00030164,7]
[364678742,1749197455689,-480.0,0.00030164,7]
[364678743,1749197455700,-1907.45,0.00030164,7]
[364678744,1749197455709,-480.0,0.00030164,7]
[364678745,1749197455719,-486.59199011,0.00030164,7]
[364678746,1749197455730,-4171.06,0.00030164,7]
[364678747,1749197455742,-480.0,0.00030164,7]
[364678748,1749197455751,-984.05,0.00030164,7]
[364678749,1749197455762,-480.0,0.00030164,7]
[364678750,1749197455772,-2602.39,0.00030164,7]
[364678751,1749197455783,-476.77350029,0.00030164,7]
[364678752,1749197455793,-6201.95,0.00030164,7]
[364678753,1749197455803,-480.0,0.00030164,7]
[364678754,1749197455813,-908.14,0.00030164,7]
[364678755,1749197455823,-2121.81,0.00030164,7]
[364678756,1749197455833,-339.050092,0.00030164,7]
[364678757,1749197455843,-339.050092,0.00030164,7]
[364678758,1749197455854,-426.0577345,0.00030164,7]
[364678759,1749197455863,-238.622857,0.00030164,7]
[364678760,1749197455874,-461.87213909,0.00030164,7]
[364678761,1749197455884,-1074.2,0.00030164,7]
[364678762,1749197455894,-480.0,0.00030164,7]
[364678763,1749197455903,-437.289691,0.00030164,2]
[364678764,1749197455913,-2106.24,0.00030164,7]
[364678765,1749197455923,-480.0,0.00030164,7]
[364678766,1749197455934,-173.3506,0.00030164,7]
[364678767,1749197455948,-339.050092,0.00030164,7]
[364678768,1749197455958,-12037.38,0.00030164,7]
[364678769,1749197455969,-2112.72,0.00030164,7]
[364678770,1749197455979,-1527.84,0.00030164,7]
[364678771,1749197455990,-1014.46,0.00030164,7]
[364678772,1749197456000,-339.050092,0.00030164,7]
[364678773,1749197456010,-848.41,0.00030164,7]
[364678774,1749197456020,-205.65349151,0.00030164,7]
[364678775,1749197456030,-480.0,0.00030164,7]
[364678776,1749197456040,-1829.73,0.00030164,7]
[364678777,1749197456050,-480.0,0.00030164,7]
[364678778,1749197456061,-1374.66,0.00030164,7]
[364678779,1749197456071,-424.42628348,0.00030164,7]
[364678780,1749197456081,-480.0,0.00030164,7]
[364678781,1749197456091,-480.0,0.00030164,7]
[364678782,1749197456101,-151.0,0.00030164,7]
[364678783,1749197456111,-151.0,0.00030164,7]
[364678784,1749197456120,-485.13260074,0.00030164,7]
[364678785,1749197456130,-480.0,0.00030164,7]
[364678786,1749197456140,-480.0,0.00030164,7]
[364678787,1749197456150,-585.99866225,0.00030164,7]
[364678788,1749197456159,-3874.69,0.00030164,7]
[364678789,1749197456169,-1526.25,0.00030164,2]
[364678790,1749197456180,-151.0,0.00030164,7]
[364678791,1749197456191,-151.0,0.00030164,7]
[364678792,1749197456201,-894.72,0.00030164,7]
[364678793,1749197456211,-151.0,0.00030164,7]
[364678794,1749197456221,-480.0,0.00030164,7]
[364678795,1749197456230,-480.0,0.00030164,7]
[364678796,1749197456240,-151.0,0.00030164,7]
[364678797,1749197456249,-1071.48,0.00030164,7]
[364678798,1749197456259,-480.0,0.00030164,7]
[364678799,1749197456269,-1415.9,0.00030164,7]
[364678800,1749197456279,-420.0,0.00030164,7]
[364678801,1749197456290,-480.0,0.00030164,7]
[364678802,1749197456300,-10675.65,0.00030164,7]
[364678803,1749197456310,-151.0,0.00030164,7]
[364678804,1749197456319,-151.0,0.00030164,7]
[364678805,1749197456328,-480.0,0.00030164,7]
[364678806,1749197456337,-6223.16,0.00030164,7]
[364678807,1749197456347,-954.54,0.00030164,7]
[364678808,1749197456356,-480.0,0.00030164,7]
[364678809,1749197456365,-426.37179104,0.00030164,7]
[364678810,1749197456375,-203.528443,0.00030164,7]
[364678811,1749197456384,-1264.89,0.00030164,7]
[364678812,1749197456393,-480.0,0.00030164,7]
[364678813,1749197456403,-892.65,0.00030164,7]
[364678814,1749197456413,-229.42916,0.00030164,7]
[364678815,1749197456422,-229.42916,0.00030164,7]
[364678816,1749197456431,-480.0,0.00030164,7]
[364678817,1749197456441,-151.0,0.00030164,7]
[364678818,1749197456450,-480.0,0.00030164,7]
[364678819,1749197456460,-1334.57,0.00030164,7]
[364678820,1749197456469,-151.0,0.00030164,7]
[364678821,1749197456478,-5244.54,0.00030164,7]
[364678822,1749197456488,-229.42916,0.00030164,7]
[364678823,1749197456498,-483.91478241,0.00030164,7]
[364678824,1749197456507,-1745.74,0.00030164,7]
[364678825,1749197456517,-690.02,0.00030164,7]
[364678826,1749197456527,-229.42916,0.00030164,7]
[364678827,1749197456536,-493.82174448,0.00030164,7]
[364678828,1749197456545,-480.0,0.00030164,7]
[364678829,1749197456555,-5331.78,0.00030164,7]
[364678830,1749197456564,-484.09096895,0.00030164,7]
[364678831,1749197456573,-480.0,0.00030164,7]
[364678832,1749197456582,-480.0,0.00030164,7]
[364678833,1749197456591,-480.0,0.00030164,7]
[364678834,1749197456601,-480.0,0.00030164,7]
[364678835,1749197456610,-480.0,0.00030164,7]
[364678836,1749197456620,-486.16470716,0.00030164,7]
[364678837,1749197456629,-577.1,0.00030164,7]
[364678838,1749197456639,-151.0,0.00030164,7]
[364678839,1749197456648,-1846.69,0.00030164,7]
[364678840,1749197456662,-151.0,0.00030164,7]
[364678841,1749197456671,-480.0,0.00030164,7]
[364678842,1749197456682,-417.096075,0.00030164,7]
[364678843,1749197456692,-480.0,0.00030164,7]
[364678844,1749197456702,-480.0,0.00030164,7]
[364678845,1749197456712,-480.0,0.00030164,7]
[364678846,1749197456721,-480.0,0.00030164,7]
[364678847,1749197456731,-151.0,0.00030164,7]
[364678848,1749197456740,-1324.34,0.00030164,7]
[364678849,1749197456751,-480.0,0.00030164,7]
[364678850,1749197456760,-151.0,0.00030164,7]
[364678851,1749197456769,-480.0,0.00030164,7]
[364678852,1749197456779,-480.0,0.00030164,7]
[364678853,1749197456788,-1485.03,0.00030164,7]
[364678854,1749197456798,-480.0,0.00030164,7]
[364678855,1749197456807,-404.98680034,0.00030164,7]
[364678856,1749197456816,-480.0,0.00030164,7]
[364678857,1749197456826,-183.11684,0.00030164,7]
[364678858,1749197456836,-480.0,0.00030164,7]
[364678859,1749197456845,-480.0,0.00030164,7]
[364678860,1749197456854,-480.0,0.00030164,7]
[364678861,1749197456864,-854.68,0.00030164,7]
[364678862,1749197456873,-500.0,0.00030164,7]
[364678863,1749197456883,-480.0,0.00030164,7]
[364678864,1749197456892,-500.0,0.00030164,7]
[364678865,1749197456902,-480.0,0.00030164,7]
[364678866,1749197456911,-500.0,0.00030164,7]
[364678867,1749197456920,-480.0,0.00030164,7]
[364678868,1749197456930,-500.0,0.00030164,7]
[364678869,1749197456939,-500.0,0.00030164,7]
[364678870,1749197456948,-500.0,0.00030164,7]
[364678871,1749197456958,-500.0,0.00030164,7]
[364678872,1749197456968,-1593.16,0.00030164,7]
[364678873,1749197456977,-1410.64,0.00030164,7]
[364678874,1749197456987,-1207.83,0.00030164,7]
[364678875,1749197456997,-480.0,0.00030164,7]
[364678876,1749197457007,-1613.92,0.00030164,7]
[364678877,1749197457017,-2043.06,0.00030164,7]
[364678878,1749197457026,-480.0,0.00030164,7]
[364678879,1749197457036,-238.26929,0.00030164,7]
[364678880,1749197457045,-480.0,0.00030164,7]
[364678881,1749197457056,-238.26929,0.00030164,7]
[364678882,1749197457066,-432.69760027,0.00030164,7]
[364678883,1749197457076,-151.0,0.00030164,7]
[364678884,1749197457086,-500.0,0.00030164,7]
[364678885,1749197457096,-480.0,0.00030164,7]
[364678886,1749197457106,-151.0,0.00030164,7]
[364678887,1749197457116,-500.0,0.00030164,7]
[364678888,1749197457126,-500.0,0.00030164,7]
[364678889,1749197457136,-480.0,0.00030164,7]
[364678890,1749197457146,-480.0,0.00030164,7]
[364678891,1749197457156,-500.0,0.00030164,7]
[364678892,1749197457166,-500.0,0.00030164,7]
[364678893,1749197457176,-480.0,0.00030164,7]
[364678894,1749197457186,-500.0,0.00030164,7]
[364678895,1749197457196,-500.0,0.00030164,7]
[364678896,1749197457206,-500.0,0.00030164,7]
[364678897,1749197457216,-153.84655,0.00030164,7]
[364678898,1749197457225,-480.0,0.00030164,7]
[364678899,1749197457235,-238.26929,0.00030164,7]
[364678900,1749197457245,-238.26929,0.00030164,7]
[364678901,1749197457256,-480.0,0.00030164,7]
[364678902,1749197457266,-1285.47,0.00030164,7]
[364678903,1749197457277,-2497.24,0.00030164,7]
[364678904,1749197457288,-480.0,0.00030164,7]
[364678905,1749197457298,-722.221235,0.00030164,7]
[364678906,1749197457308,-480.0,0.00030164,7]
[364678907,1749197457318,-1896.04,0.00030164,7]
[364678908,1749197457327,-732.66,0.00030164,7]
[364678909,1749197457337,-480.0,0.00030164,7]
[364678910,1749197457346,-480.0,0.00030164,7]
[364678911,1749197457356,-480.43663519,0.00030164,7]
[364678912,1749197457366,-735.38,0.00030164,7]
[364678913,1749197457376,-480.0,0.00030164,7]
[364678914,1749197457385,-1631.58,0.00030164,7]
[364678915,1749197457398,-480.0,0.00030164,7]
[364678916,1749197457407,-480.0,0.00030164,7]
[364678917,1749197457417,-721.27,0.00030164,7]
[364678918,1749197457427,-554.22,0.00030164,7]
[364678919,1749197457437,-398.85324188,0.00030164,7]
[364678920,1749197457447,-554.22,0.00030164,7]
[364678921,1749197457457,-554.22,0.00030164,7]
[364678922,1749197457466,-1408.84,0.00030164,7]
[364678923,1749197457476,-554.22,0.00030164,7]
[364678924,1749197457486,-480.0,0.00030164,7]
[364678925,1749197457495,-480.0,0.00030164,7]
[364678926,1749197457505,-554.22,0.00030164,7]
[364678927,1749197457515,-554.22,0.00030164,7]
[364678928,1749197457524,-554.22,0.00030164,7]
[364678929,1749197457534,-554.22,0.00030164,7]
[364678930,1749197457543,-1252.03,0.00030164,7]
[364678931,1749197457553,-749.27,0.00030164,7]
[364678932,1749197457563,-554.22,0.00030164,7]
[364678933,1749197457572,-554.22,0.00030164,7]
[364678934,1749197457582,-554.22,0.00030164,7]
[364678935,1749197457592,-851.11,0.00030164,7]
[364678936,1749197457601,-554.22,0.00030164,7]
[364678937,1749197457611,-554.22,0.00030164,7]
[364678938,1749197457620,-502.097597,0.00030164,7]
[364678939,1749197457631,-554.22,0.00030164,7]
[364678940,1749197457640,-554.22,0.00030164,7]
[364678941,1749197457714,-502.097597,0.00030164,7]
[364678942,1749197457725,-261.289873,0.00030164,7]
[364678943,1749197457738,-480.0,0.00030164,7]
[364678944,1749197457748,-4575.79,0.00030164,7]
[364678945,1749197457758,-1393.37,0.00030164,7]
[364678946,1749197457767,-502.097597,0.00030164,7]
[364678947,1749197457778,-1003.28,0.00030164,7]
[364678948,1749197457787,-502.097597,0.00030164,7]
[364678949,1749197457797,-482.48921709,0.00030164,7]
[364678950,1749197457805,-480.0,0.00030164,7]
[364678951,1749197457814,-2684.8,0.00030164,7]
[364678952,1749197457824,-480.0,0.00030164,7]
[364678953,1749197457833,-480.0,0.00030164,7]
[364678954,1749197457842,-1115.23,0.00030164,7]
[364678955,1749197457853,-480.0,0.00030164,7]
[364678956,1749197457862,-480.0,0.00030164,7]
[364678957,1749197457871,-834.567432,0.00030164,7]
[364678958,1749197457881,-480.0,0.00030164,7]
[364678959,1749197457890,-480.0,0.00030164,7]
[364678960,1749197457899,-5263.21,0.00030164,7]
[364678961,1749197457909,-480.0,0.00030164,5]
[364678962,1749197457919,-18302.03,0.00030164,7]
[364678963,1749197457928,-151.0,0.00030164,7]
[364678964,1749197457939,-1151.55,0.00030164,7]
[364678965,1749197457948,-151.0,0.00030164,7]
[364678966,1749197457957,-2507.72,0.00030164,7]
[364678967,1749197457967,-486.51912002,0.00030164,7]
[364678968,1749197457976,-994.87,0.00030164,7]
[364678969,1749197457985,-480.0,0.00030164,7]
[364678970,1749197457995,-496.19,0.00030164,7]
[364678971,1749197458004,-480.0,0.00030164,7]
[364678972,1749197458013,-953.26,0.00030164,7]
[364678973,1749197458022,-480.0,0.00030164,7]
[364678974,1749197458032,-353.255473,0.00030164,7]
[364678975,1749197458041,-480.0,0.00030164,7]
[364678976,1749197458050,-353.255473,0.00030164,7]
[364678977,1749197458059,-480.0,0.00030164,7]
[364678978,1749197458068,-151.0,0.00030164,7]
[364678979,1749197458078,-427.09394536,0.00030164,7]
[364678980,1749197458087,-151.0,0.00030164,7]
[364678981,1749197458096,-480.0,0.00030164,7]
[364678982,1749197458106,-1018.89,0.00030164,7]
[364678983,1749197458115,-522.75,0.00030164,7]
[364678984,1749197458124,-480.0,0.00030164,7]
[364678985,1749197458134,-353.255473,0.00030164,7]
[364678986,1749197458143,-353.255473,0.00030164,7]
[364678987,1749197458153,-575.03944,0.00030164,7]
[364678988,1749197458163,-159.604154,0.00030164,7]
[364678989,1749197458172,-480.0,0.00030164,7]
[364678990,1749197458182,-1145.19,0.00030164,7]
[364678991,1749197458191,-480.0,0.00030164,7]
[364678992,1749197458200,-159.604154,0.00030164,7]
[364678993,1749197458209,-480.0,0.00030164,7]
[364678994,1749197458219,-434.35842698,0.00030164,7]
[364678995,1749197458228,-823.56,0.00030164,7]
[364678996,1749197458240,-586.88,0.00030164,7]
[364678997,1749197458250,-515.0579445,0.00030164,7]
[364678998,1749197458259,-487.83162857,0.00030164,7]
[364678999,1749197458269,-159.604154,0.00030164,7]
[364679000,1749197458279,-480.0,0.00030164,7]
[364679001,1749197458290,-599.66,0.00030164,7]
[364679002,1749197458300,-159.604154,0.00030164,7]
[364679003,1749197458309,-480.0,0.00030164,7]
[364679004,1749197458319,-480.0,0.00030164,7]
[364679005,1749197458329,-642.87,0.00030164,2]
[364679006,1749197458338,-894.81,0.00030164,7]
[364679007,1749197458347,-480.0,0.00030164,7]
[364679008,1749197458356,-1357.61,0.00030164,7]
[364679009,1749197458365,-480.0,0.00030164,7]
[364679010,1749197458375,-6519.68,0.00030164,7]
[364679011,1749197458384,-151.0,0.00030164,7]
[364679012,1749197458393,-151.0,0.00030164,7]
[364679013,1749197458403,-560.12,0.00030164,7]
[364679014,1749197458412,-480.0,0.00030164,7]
[364679015,1749197458422,-480.0,0.00030164,7]
[364679016,1749197458431,-2372.89,0.00030164,7]
[364679017,1749197458441,-894.02,0.00030164,7]
[364679018,1749197458451,-480.0,0.00030164,7]
[364679019,1749197458460,-754.694887,0.00030164,7]
[364679020,1749197458469,-480.0,0.00030164,7]
[364679021,1749197458480,-480.0,0.00030164,7]
[364679022,1749197458490,-480.0,0.00030164,7]
[364679023,1749197458499,-955.94,0.00030164,7]
[364679024,1749197458509,-480.0,0.00030164,7]
[364679025,1749197458519,-480.0,0.00030164,2]
[364679026,1749197458529,-1367.81,0.00030164,7]
[364679027,1749197458538,-480.0,0.00030164,7]
[364679028,1749197458548,-480.0,0.00030164,3]
[364679029,1749197458557,-482.77804812,0.00030164,7]
[364679030,1749197458567,-406.43104568,0.00030164,7]
[364679031,1749197458577,-1302.71,0.00030164,7]
[364679032,1749197458587,-981.45,0.00030164,7]
[364679033,1749197458596,-480.0,0.00030164,7]
[364679034,1749197458606,-480.0,0.00030164,7]
[364679035,1749197458615,-665.71,0.00030164,7]
[364679036,1749197458626,-23916.37,0.00030164,7]
[364679037,1749197458635,-480.0,0.00030164,7]
[364679038,1749197458645,-480.0,0.00030164,7]
[364679039,1749197458657,-158.91544067,0.00030164,2]
[364679040,1749197458667,-480.0,0.00030164,7]
[364679041,1749197458676,-480.0,0.00030164,7]
[364679042,1749197458686,-480.0,0.00030164,7]
[364679043,1749197458697,-482.017629,0.00030164,7]
[364679044,1749197458707,-480.0,0.00030164,7]
[364679045,1749197458716,-1005.06598888,0.00030164,7]
[364679046,1749197458727,-152.113808,0.00030164,7]
[364679047,1749197458737,-867.3,0.00030164,7]
[364679048,1749197458747,-168.77765,0.00030164,7]
[364679049,1749197458756,-427.36215937,0.00030164,7]
[364679050,1749197458766,-914.480056,0.00030164,7]
[364679051,1749197458775,-480.0,0.00030164,7]
[364679052,1749197458785,-480.0,0.00030164,7]
[364679053,1749197458794,-428.50182905,0.00030164,7]
[364679054,1749197458804,-480.0,0.00030164,7]
[364679055,1749197458813,-502.03,0.00030164,7]
[364679056,1749197458823,-451.45346544,0.00030164,7]
[364679057,1749197458833,-879.8,0.00030164,7]
[364679058,1749197458842,-480.0,0.00030164,7]
[364679059,1749197458852,-535.31,0.00030164,7]
[364679060,1749197458862,-879.8,0.00030164,7]
[364679061,1749197458871,-879.8,0.00030164,7]
[364679062,1749197458880,-480.0,0.00030164,7]
[364679063,1749197458890,-879.8,0.00030164,7]
[364679064,1749197458899,-879.8,0.00030164,7]
[364679065,1749197458909,-480.0,0.00030164,7]
[364679066,1749197458918,-879.8,0.00030164,7]
[364679067,1749197458928,-480.0,0.00030164,7]